[Event "Live Chess"]
[Site "Chess.com"]
[Date "2024.06.02"]
[Round "-"]
[White "FREDERICKtheMATE"]
[Black "lyricalschemes"]
[Result "1-0"]
[WhiteElo "2662"]
[BlackElo "2190"]
[TimeControl "300"]
[EndTime "8:21:35 PDT"]
[Termination "FREDERICKtheMATE won by resignation"]

1. d4 {[%clk 0:04:57.5]} 1... Nf6 {[%clk 0:04:57.1]} 2. Nf3 {[%clk 0:04:56]}
2... e6 {[%clk 0:04:55.1]} 3. g3 {[%clk 0:04:55.3]} 3... d5 {[%clk 0:04:52.6]}
4. Bg2 {[%clk 0:04:54.8]} 4... Be7 {[%clk 0:04:51.1]} 5. O-O {[%clk 0:04:54.3]}
5... O-O {[%clk 0:04:50.7]} 6. b3 {[%clk 0:04:52.6]} 6... b6 {[%clk 0:04:50]} 7.
c4 {[%clk 0:04:51.2]} 7... Bb7 {[%clk 0:04:44.9]} 8. Ne5 {[%clk 0:04:49.7]} 8...
c5 {[%clk 0:04:37.9]} 9. Bb2 {[%clk 0:04:46.4]} 9... cxd4 {[%clk 0:04:32.3]} 10.
Qxd4 {[%clk 0:04:44]} 10... Nc6 {[%clk 0:04:31]} 11. Nxc6 {[%clk 0:04:42.9]}
11... Bxc6 {[%clk 0:04:30.1]} 12. Nc3 {[%clk 0:04:37]} 12... Bc5 {[%clk
0:04:24.2]} 13. Qh4 {[%clk 0:04:35.4]} 13... Be7 {[%clk 0:04:16.2]} 14. Qd4
{[%clk 0:04:29.8]} 14... Bc5 {[%clk 0:04:13.5]} 15. Qd3 {[%clk 0:04:28.5]} 15...
Rc8 {[%clk 0:04:02.7]} 16. cxd5 {[%clk 0:04:12.3]} 16... Nxd5 {[%clk 0:03:52.9]}
17. Nxd5 {[%clk 0:04:03.4]} 17... Bxd5 {[%clk 0:03:52.3]} 18. Bxd5 {[%clk
0:04:01.2]} 18... Qxd5 {[%clk 0:03:48.2]} 19. Qxd5 {[%clk 0:03:59.4]} 19... exd5
{[%clk 0:03:47]} 20. e3 {[%clk 0:03:55]} 20... Rfe8 {[%clk 0:03:43]} 21. Rfd1
{[%clk 0:03:53.2]} 21... Rcd8 {[%clk 0:03:41.4]} 22. a3 {[%clk 0:03:50.5]} 22...
f6 {[%clk 0:03:39.4]} 23. b4 {[%clk 0:03:49.4]} 23... Be7 {[%clk 0:03:38]} 24.
Rd3 {[%clk 0:03:47.6]} 24... Kf7 {[%clk 0:03:36.8]} 25. Rad1 {[%clk 0:03:42.7]}
25... Ke6 {[%clk 0:03:36.2]} 26. Kg2 {[%clk 0:03:42]} 26... Rd7 {[%clk
0:03:29.1]} 27. R1d2 {[%clk 0:03:38.1]} 27... Red8 {[%clk 0:03:28.5]} 28. g4
{[%clk 0:03:36.4]} 28... g6 {[%clk 0:03:26]} 29. h3 {[%clk 0:03:35.3]} 29... f5
{[%clk 0:03:24.9]} 30. Rc2 {[%clk 0:03:31.3]} 30... Bf6 {[%clk 0:03:18.8]} 31.
Bxf6 {[%clk 0:03:25.8]} 31... Kxf6 {[%clk 0:03:17.4]} 32. b5 {[%clk 0:03:24.5]}
32... Rd6 {[%clk 0:03:13.1]} 33. Rd4 {[%clk 0:03:21]} 33... R8d7 {[%clk
0:03:06.6]} 34. f4 {[%clk 0:03:13.3]} 34... Re7 {[%clk 0:03:02.4]} 35. Kf3
{[%clk 0:03:12.4]} 35... Rde6 {[%clk 0:02:58.5]} 36. Rc3 {[%clk 0:03:09.5]}
36... Rd7 {[%clk 0:02:50.2]} 37. Rcd3 {[%clk 0:03:02.4]} 37... Red6 {[%clk
0:02:49.1]} 38. a4 {[%clk 0:03:01.2]} 38... Rd8 {[%clk 0:02:44.4]} 39. Ra3
{[%clk 0:02:57.6]} 39... R8d7 {[%clk 0:02:26.5]} 40. Rc3 {[%clk 0:02:54.2]}
40... Ke6 {[%clk 0:02:18]} 41. g5 {[%clk 0:02:37.3]} 41... Rd8 {[%clk
0:02:12.2]} 42. h4 {[%clk 0:02:34.8]} 42... R8d7 {[%clk 0:02:09.8]} 43. Kg3
{[%clk 0:02:31.3]} 43... Rd8 {[%clk 0:02:02.3]} 44. h5 {[%clk 0:02:30.4]} 44...
R8d7 {[%clk 0:02:01.1]} 45. h6 {[%clk 0:02:29.4]} 45... Rd8 {[%clk 0:01:58.7]}
46. Kf3 {[%clk 0:02:28.6]} 46... R8d7 {[%clk 0:01:58.1]} 47. Ke2 {[%clk
0:02:26.3]} 47... Rd8 {[%clk 0:01:57]} 48. Kd3 {[%clk 0:02:25.6]} 48... R8d7
{[%clk 0:01:56.1]} 49. Rb4 {[%clk 0:02:22.2]} 49... Rd8 {[%clk 0:01:47.1]} 50.
Kd4 {[%clk 0:02:19.7]} 50... R8d7 {[%clk 0:01:44.8]} 51. Rb2 {[%clk 0:02:17.3]}
51... Rd8 {[%clk 0:01:43.8]} 52. Rbc2 {[%clk 0:02:16.4]} 52... R8d7 {[%clk
0:01:33.1]} 53. Rc8 {[%clk 0:02:13.7]} 53... Rd8 {[%clk 0:01:31.4]} 54. R8c7
{[%clk 0:02:07.5]} 54... R8d7 {[%clk 0:01:30.1]} 55. R2c3 {[%clk 0:02:03.9]}
55... Ke7 {[%clk 0:01:22]} 56. Rxd7+ {[%clk 0:02:00.7]} 56... Kxd7 {[%clk
0:01:16.8]} 57. Ke5 {[%clk 0:01:57.9]} 57... d4 {[%clk 0:01:10.9]} 58. exd4
{[%clk 0:01:54.6]} 58... Re6+ {[%clk 0:01:10.4]} 59. Kd5 {[%clk 0:01:51.8]}
59... Re4 {[%clk 0:01:05.7]} 60. a5 {[%clk 0:01:46.5]} 60... Rxf4 {[%clk
0:00:58.2]} 61. axb6 {[%clk 0:01:42]} 61... axb6 {[%clk 0:00:57.7]} 62. Rc6
{[%clk 0:01:41.2]} 62... Rg4 {[%clk 0:00:54.8]} 63. Rxb6 {[%clk 0:01:40.2]}
63... Rxg5 {[%clk 0:00:54.5]} 64. Rb7+ {[%clk 0:01:39.4]} 64... Kc8 {[%clk
0:00:53]} 65. Rxh7 {[%clk 0:01:38.2]} 65... f4+ {[%clk 0:00:51.3]} 66. Kc6
{[%clk 0:01:37.1]} 66... Kd8 {[%clk 0:00:46.2]} 67. b6 {[%clk 0:01:25.1]} 67...
f3 {[%clk 0:00:45.3]} 68. b7 {[%clk 0:01:21.8]} 1-0

[Event "Live Chess"]
[Site "Chess.com"]
[Date "2024.06.02"]
[Round "-"]
[White "degringolade64"]
[Black "matt1979"]
[Result "1-0"]
[WhiteElo "2082"]
[BlackElo "1400"]
[TimeControl "300"]
[EndTime "8:21:36 PDT"]
[Termination "degringolade64 won by resignation"]

1. e4 {[%clk 0:04:55.3]} 1... d6 {[%clk 0:04:58.3]} 2. d4 {[%clk 0:04:53.6]}
2... Nf6 {[%clk 0:04:57.5]} 3. Nc3 {[%clk 0:04:52.8]} 3... Nbd7 {[%clk
0:04:56.9]} 4. g4 {[%clk 0:04:50.7]} 4... h6 {[%clk 0:04:53.8]} 5. h3 {[%clk
0:04:48.9]} 5... e5 {[%clk 0:04:52.9]} 6. Nge2 {[%clk 0:04:47.2]} 6... Be7
{[%clk 0:04:51.9]} 7. Bg2 {[%clk 0:04:46.1]} 7... c6 {[%clk 0:04:51.2]} 8. a4
{[%clk 0:04:44.5]} 8... Qc7 {[%clk 0:04:50.5]} 9. O-O {[%clk 0:04:43]} 9... O-O
{[%clk 0:04:42.4]} 10. Be3 {[%clk 0:04:41.1]} 10... b6 {[%clk 0:04:40.4]} 11.
Ng3 {[%clk 0:04:37.8]} 11... exd4 {[%clk 0:04:26.6]} 12. Bxd4 {[%clk 0:04:34.7]}
12... Nc5 {[%clk 0:04:25.2]} 13. Qd2 {[%clk 0:04:24.6]} 13... Be6 {[%clk
0:04:13.7]} 14. Rad1 {[%clk 0:04:17]} 14... Rad8 {[%clk 0:04:12.6]} 15. f4
{[%clk 0:04:07.3]} 15... d5 {[%clk 0:03:56.5]} 16. e5 {[%clk 0:04:04.9]} 16...
Nfd7 {[%clk 0:03:52.3]} 17. f5 {[%clk 0:03:45.9]} 17... Bxf5 {[%clk 0:03:40.6]}
18. Nxf5 {[%clk 0:03:44.1]} 18... Bg5 {[%clk 0:03:39.4]} 19. Be3 {[%clk
0:03:27]} 19... Bxe3+ {[%clk 0:03:35.6]} 20. Qxe3 {[%clk 0:03:24.9]} 20... Nxe5
{[%clk 0:03:33.2]} 21. Qf4 {[%clk 0:03:04.7]} 21... Qd6 {[%clk 0:03:24.9]} 22.
Nxd6 {[%clk 0:03:02.5]} 1-0

[Event "Live Chess"]
[Site "Chess.com"]
[Date "2024.06.02"]
[Round "-"]
[White "Frankie_Badacsonyi"]
[Black "Zhevzh1k7"]
[Result "1-0"]
[WhiteElo "2363"]
[BlackElo "1128"]
[TimeControl "300"]
[EndTime "8:21:50 PDT"]
[Termination "Frankie_Badacsonyi won by checkmate"]

1. Nf3 {[%clk 0:04:58.4]} 1... d5 {[%clk 0:04:57.1]} 2. b3 {[%clk 0:04:58.3]}
2... c5 {[%clk 0:04:54.3]} 3. Bb2 {[%clk 0:04:57.9]} 3... Nc6 {[%clk 0:04:52.4]}
4. e3 {[%clk 0:04:57.5]} 4... Bf5 {[%clk 0:04:48.5]} 5. Bb5 {[%clk 0:04:56]}
5... Qb6 {[%clk 0:04:45.9]} 6. Bxc6+ {[%clk 0:04:54.8]} 6... Qxc6 {[%clk
0:04:43.1]} 7. O-O {[%clk 0:04:54.4]} 7... e6 {[%clk 0:04:40.7]} 8. d3 {[%clk
0:04:54.1]} 8... Nf6 {[%clk 0:04:39]} 9. Nbd2 {[%clk 0:04:53.6]} 9... Be7 {[%clk
0:04:37.4]} 10. Qe2 {[%clk 0:04:53.2]} 10... O-O {[%clk 0:04:36]} 11. Rfe1
{[%clk 0:04:52.9]} 11... Rfe8 {[%clk 0:04:34.6]} 12. e4 {[%clk 0:04:51.8]} 12...
dxe4 {[%clk 0:04:28]} 13. dxe4 {[%clk 0:04:51.7]} 13... Bg6 {[%clk 0:04:24.1]}
14. Ne5 {[%clk 0:04:48.4]} 14... Qc7 {[%clk 0:04:13.8]} 15. Nxg6 {[%clk
0:04:47.6]} 15... fxg6 {[%clk 0:04:11.3]} 16. Rad1 {[%clk 0:04:43.7]} 16... Rad8
{[%clk 0:04:09]} 17. Nc4 {[%clk 0:04:40.2]} 17... b5 {[%clk 0:04:02.1]} 18. Ne5
{[%clk 0:04:32.7]} 18... Bd6 {[%clk 0:03:50.7]} 19. Nf3 {[%clk 0:04:30.6]} 19...
a6 {[%clk 0:03:40.7]} 20. e5 {[%clk 0:04:29.4]} 20... Nd5 {[%clk 0:03:33.7]} 21.
exd6 {[%clk 0:04:26.3]} 21... Qxd6 {[%clk 0:03:33.6]} 22. Qe5 {[%clk 0:04:24.9]}
22... Qxe5 {[%clk 0:03:25.9]} 23. Nxe5 {[%clk 0:04:24.8]} 23... Nb4 {[%clk
0:03:24.8]} 24. c3 {[%clk 0:04:19.2]} 24... Nd5 {[%clk 0:03:12.2]} 25. Nc6
{[%clk 0:04:13.1]} 25... Rd6 {[%clk 0:03:09.9]} 26. Ne5 {[%clk 0:04:08.7]} 26...
Red8 {[%clk 0:02:58.7]} 27. c4 {[%clk 0:04:07.4]} 27... bxc4 {[%clk 0:02:56.9]}
28. Nxc4 {[%clk 0:04:07.3]} 28... R6d7 {[%clk 0:02:48.3]} 29. g3 {[%clk
0:04:03.5]} 29... Nf6 {[%clk 0:02:40.8]} 30. Rxd7 {[%clk 0:04:00]} 30... Rxd7
{[%clk 0:02:38.5]} 31. Rxe6 {[%clk 0:03:59.5]} 31... Rd1+ {[%clk 0:02:36.8]} 32.
Kg2 {[%clk 0:03:57.3]} 32... Rd5 {[%clk 0:02:21.1]} 33. Bxf6 {[%clk 0:03:55.1]}
33... gxf6 {[%clk 0:02:19.6]} 34. Rxa6 {[%clk 0:03:55]} 34... Kg7 {[%clk
0:02:13.4]} 35. Rd6 {[%clk 0:03:51.1]} 35... Rxd6 {[%clk 0:02:09]} 36. Nxd6
{[%clk 0:03:51]} 36... Kh6 {[%clk 0:02:06.2]} 37. a4 {[%clk 0:03:49.3]} 37...
Kg5 {[%clk 0:02:04.6]} 38. a5 {[%clk 0:03:48.8]} 38... f5 {[%clk 0:02:01.8]} 39.
a6 {[%clk 0:03:47.8]} 39... Kg4 {[%clk 0:02:01.7]} 40. a7 {[%clk 0:03:46.8]}
40... f4 {[%clk 0:02:00.3]} 41. gxf4 {[%clk 0:03:45.1]} 41... Kxf4 {[%clk
0:02:00.2]} 42. a8=Q {[%clk 0:03:43.1]} 42... g5 {[%clk 0:01:57.7]} 43. Qe4#
{[%clk 0:03:42.5]} 1-0

[Event "Live Chess"]
[Site "Chess.com"]
[Date "2024.06.02"]
[Round "-"]
[White "TheSmoulderingMaster"]
[Black "ivan_1968"]
[Result "0-1"]
[WhiteElo "1775"]
[BlackElo "1817"]
[TimeControl "300"]
[EndTime "8:22:07 PDT"]
[Termination "ivan_1968 won by resignation"]

1. e4 {[%clk 0:04:58]} 1... c6 {[%clk 0:04:58.4]} 2. d4 {[%clk 0:04:55.4]} 2...
d5 {[%clk 0:04:58.3]} 3. Nc3 {[%clk 0:04:53.2]} 3... b5 {[%clk 0:04:55.1]} 4.
exd5 {[%clk 0:04:50.4]} 4... b4 {[%clk 0:04:53.7]} 5. Nce2 {[%clk 0:04:45.8]}
5... cxd5 {[%clk 0:04:52.8]} 6. Ng3 {[%clk 0:04:45.1]} 6... Ba6 {[%clk
0:04:41.9]} 7. Bxa6 {[%clk 0:04:42.2]} 7... Nxa6 {[%clk 0:04:40.7]} 8. Nf3
{[%clk 0:04:42]} 8... e6 {[%clk 0:04:33.5]} 9. O-O {[%clk 0:04:40]} 9... Nf6
{[%clk 0:04:31.5]} 10. Bg5 {[%clk 0:04:38.1]} 10... Bd6 {[%clk 0:04:28.8]} 11.
Ne5 {[%clk 0:04:35.9]} 11... h6 {[%clk 0:04:20.8]} 12. Bh4 {[%clk 0:04:34.3]}
12... g5 {[%clk 0:04:18]} 13. Nh5 {[%clk 0:04:26.3]} 13... Bxe5 {[%clk
0:04:07.5]} 14. Nxf6+ {[%clk 0:04:21]} 14... Bxf6 {[%clk 0:04:06]} 15. Bg3
{[%clk 0:04:19.9]} 15... Qb6 {[%clk 0:03:58]} 16. Re1 {[%clk 0:04:15.2]} 16...
O-O {[%clk 0:03:45.5]} 17. Qf3 {[%clk 0:04:09.3]} 17... Bg7 {[%clk 0:03:40.9]}
18. h4 {[%clk 0:04:06.6]} 18... Qxd4 {[%clk 0:03:35.5]} 19. hxg5 {[%clk
0:04:05.6]} 19... hxg5 {[%clk 0:03:34.1]} 20. Qh5 {[%clk 0:04:01.3]} 20... Qf6
{[%clk 0:03:24.8]} 21. Be5 {[%clk 0:03:59.5]} 21... Qg6 {[%clk 0:03:23.5]} 22.
Qg4 {[%clk 0:03:55.4]} 22... f5 {[%clk 0:03:17.1]} 23. Qe2 {[%clk 0:03:45.1]}
23... Nc5 {[%clk 0:03:13.1]} 24. Qb5 {[%clk 0:03:38.8]} 24... Rac8 {[%clk
0:02:53.5]} 25. Qxb4 {[%clk 0:03:33]} 25... Ne4 {[%clk 0:02:50]} 26. Bxg7 {[%clk
0:03:26.1]} 26... Kxg7 {[%clk 0:02:41.6]} 27. Qd4+ {[%clk 0:03:22.5]} 27... Qf6
{[%clk 0:02:35.4]} 28. Qxa7+ {[%clk 0:03:20.8]} 28... Rf7 {[%clk 0:02:34.1]} 29.
Qa6 {[%clk 0:03:17.6]} 29... Rxc2 {[%clk 0:02:29.2]} 30. a4 {[%clk 0:03:16.1]}
30... Qd4 {[%clk 0:02:16.5]} 31. Rf1 {[%clk 0:03:09.2]} 31... Rxf2 {[%clk
0:02:13.9]} 32. Rxf2 {[%clk 0:03:04.5]} 32... Qxf2+ {[%clk 0:02:12.1]} 33. Kh1
{[%clk 0:03:03.7]} 33... Kf6 {[%clk 0:02:08]} 0-1

[Event "Live Chess"]
[Site "Chess.com"]
[Date "2024.06.02"]
[Round "-"]
[White "ShanthamGrarks"]
[Black "ACM42"]
[Result "1-0"]
[WhiteElo "1905"]
[BlackElo "2157"]
[TimeControl "300"]
[EndTime "8:22:14 PDT"]
[Termination "ShanthamGrarks won by checkmate"]

1. d4 {[%clk 0:04:54.1]} 1... Nf6 {[%clk 0:04:57.5]} 2. Nc3 {[%clk 0:04:51.4]}
2... g6 {[%clk 0:04:55.7]} 3. e4 {[%clk 0:04:48.8]} 3... Bg7 {[%clk 0:04:55.1]}
4. e5 {[%clk 0:04:47.1]} 4... Ng8 {[%clk 0:04:54.2]} 5. f4 {[%clk 0:04:45.6]}
5... d6 {[%clk 0:04:52.6]} 6. Nf3 {[%clk 0:04:44.8]} 6... Nd7 {[%clk 0:04:50]}
7. Bc4 {[%clk 0:04:42.1]} 7... e6 {[%clk 0:04:49.1]} 8. O-O {[%clk 0:04:35]}
8... d5 {[%clk 0:04:47.9]} 9. Bd3 {[%clk 0:04:32.1]} 9... c5 {[%clk 0:04:47.3]}
10. Nb5 {[%clk 0:04:29.7]} 10... Bf8 {[%clk 0:04:43.9]} 11. Ng5 {[%clk
0:04:18.4]} 11... a6 {[%clk 0:04:41.1]} 12. Nd6+ {[%clk 0:04:09.7]} 12... Bxd6
{[%clk 0:04:39.4]} 13. exd6 {[%clk 0:04:09.6]} 13... cxd4 {[%clk 0:03:49.2]} 14.
Qe2 {[%clk 0:03:48.6]} 14... Nc5 {[%clk 0:03:47.8]} 15. f5 {[%clk 0:03:23.1]}
15... Nxd3 {[%clk 0:03:32.9]} 16. cxd3 {[%clk 0:03:21.4]} 16... Qxd6 {[%clk
0:03:14.7]} 17. fxe6 {[%clk 0:03:18.7]} 17... f6 {[%clk 0:02:48]} 18. Bf4 {[%clk
0:03:14.9]} 18... Qe7 {[%clk 0:02:45.3]} 19. Nf7 {[%clk 0:03:05.3]} 19... Qxe6
{[%clk 0:02:42.7]} 20. Qxe6+ {[%clk 0:02:36.6]} 20... Bxe6 {[%clk 0:02:42.6]}
21. Nxh8 {[%clk 0:02:35.8]} 21... Kf8 {[%clk 0:02:41.9]} 22. Rae1 {[%clk
0:02:33.5]} 22... Re8 {[%clk 0:02:39.5]} 23. Bh6+ {[%clk 0:02:20.5]} 23... Nxh6
{[%clk 0:02:17.4]} 24. Rxf6+ {[%clk 0:02:17.3]} 24... Kg7 {[%clk 0:02:15.7]} 25.
Rfxe6 {[%clk 0:02:16.4]} 25... Rxh8 {[%clk 0:02:05.8]} 26. Re7+ {[%clk
0:02:13.6]} 26... Kf6 {[%clk 0:02:02.4]} 27. Rxb7 {[%clk 0:02:07]} 27... Nf5
{[%clk 0:02:01.5]} 28. Rb6+ {[%clk 0:02:02.9]} 28... Kg5 {[%clk 0:01:59.7]} 29.
Rxa6 {[%clk 0:01:58.5]} 29... Rc8 {[%clk 0:01:57]} 30. Ra5 {[%clk 0:01:54.4]}
30... Rc2 {[%clk 0:01:53.4]} 31. Rxd5 {[%clk 0:01:50.6]} 31... Rxb2 {[%clk
0:01:52.2]} 32. a4 {[%clk 0:01:46.7]} 32... Ra2 {[%clk 0:01:51.2]} 33. a5 {[%clk
0:01:45.3]} 33... h5 {[%clk 0:01:44.3]} 34. Re4 {[%clk 0:01:44]} 34... h4 {[%clk
0:01:41.2]} 35. Rexd4 {[%clk 0:01:32.9]} 35... Ra1+ {[%clk 0:01:40.1]} 36. Kf2
{[%clk 0:01:30.7]} 36... Ra2+ {[%clk 0:01:39.3]} 37. Kf3 {[%clk 0:01:28.4]}
37... Ra1 {[%clk 0:01:29.3]} 38. Rg4+ {[%clk 0:01:20.3]} 38... Kf6 {[%clk
0:01:25.8]} 39. Rb5 {[%clk 0:01:13.1]} 39... Ra3 {[%clk 0:01:18.8]} 40. Rf4
{[%clk 0:00:50]} 40... Rxd3+ {[%clk 0:01:14.2]} 41. Kg4 {[%clk 0:00:49.2]} 41...
Ra3 {[%clk 0:01:04.7]} 42. Rb6+ {[%clk 0:00:42.8]} 42... Kg7 {[%clk 0:01:03.3]}
43. Kg5 {[%clk 0:00:40.2]} 43... Ne7 {[%clk 0:00:43.7]} 44. a6 {[%clk
0:00:38.8]} 44... Ra5+ {[%clk 0:00:42.2]} 45. Kg4 {[%clk 0:00:37.7]} 45... Nf5
{[%clk 0:00:27.5]} 46. Rb7+ {[%clk 0:00:34.3]} 46... Kh6 {[%clk 0:00:26.3]} 47.
a7 {[%clk 0:00:24.5]} 47... Ra3 {[%clk 0:00:18.1]} 48. Rxf5 {[%clk 0:00:17.8]}
48... gxf5+ {[%clk 0:00:16.9]} 49. Kxf5 {[%clk 0:00:17]} 49... h3 {[%clk
0:00:11.3]} 50. g4 {[%clk 0:00:15.2]} 50... Rxa7 {[%clk 0:00:08]} 51. g5+ {[%clk
0:00:09.3]} 51... Kh5 {[%clk 0:00:07.1]} 52. Rxa7 {[%clk 0:00:06.3]} 52... Kh4
{[%clk 0:00:05.3]} 53. Rh7# {[%clk 0:00:05.6]} 1-0

[Event "Live Chess"]
[Site "Chess.com"]
[Date "2024.06.02"]
[Round "-"]
[White "joellloyd"]
[Black "McFim"]
[Result "0-1"]
[WhiteElo "1883"]
[BlackElo "1809"]
[TimeControl "300"]
[EndTime "8:22:41 PDT"]
[Termination "McFim won by resignation"]

1. e4 {[%clk 0:04:59.9]} 1... c6 {[%clk 0:04:57.2]} 2. d4 {[%clk 0:04:59.4]}
2... d5 {[%clk 0:04:56.7]} 3. e5 {[%clk 0:04:59]} 3... Bf5 {[%clk 0:04:54.7]} 4.
h4 {[%clk 0:04:58.1]} 4... h5 {[%clk 0:04:50.8]} 5. Bd3 {[%clk 0:04:56.9]} 5...
Bxd3 {[%clk 0:04:49.7]} 6. Qxd3 {[%clk 0:04:56.8]} 6... e6 {[%clk 0:04:49.2]} 7.
Bg5 {[%clk 0:04:56.5]} 7... Qd7 {[%clk 0:04:47.4]} 8. Nf3 {[%clk 0:04:55.1]}
8... Ne7 {[%clk 0:04:45.7]} 9. Nbd2 {[%clk 0:04:53.4]} 9... c5 {[%clk
0:04:44.1]} 10. c4 {[%clk 0:04:52.4]} 10... cxd4 {[%clk 0:04:42.1]} 11. Nxd4
{[%clk 0:04:36.1]} 11... dxc4 {[%clk 0:04:36.1]} 12. Nxc4 {[%clk 0:04:34.1]}
12... Nf5 {[%clk 0:04:30.9]} 13. O-O-O {[%clk 0:04:25.7]} 13... Nxd4 {[%clk
0:04:28.5]} 14. Qxd4 {[%clk 0:04:24]} 14... Qxd4 {[%clk 0:04:27.1]} 15. Rxd4
{[%clk 0:04:23.9]} 15... Nc6 {[%clk 0:04:26.2]} 16. Nd6+ {[%clk 0:04:00]} 16...
Bxd6 {[%clk 0:04:24.2]} 17. Rxd6 {[%clk 0:03:59.9]} 17... Nxe5 {[%clk
0:04:19.4]} 18. Rhd1 {[%clk 0:03:58.6]} 18... f6 {[%clk 0:04:10.6]} 19. Rxe6+
{[%clk 0:03:56.4]} 19... Kf7 {[%clk 0:04:08.7]} 20. Rxe5 {[%clk 0:03:33]} 20...
fxe5 {[%clk 0:04:06.1]} 21. Rd7+ {[%clk 0:03:31.9]} 21... Kg6 {[%clk 0:04:01.4]}
22. Rxb7 {[%clk 0:03:27.9]} 22... Rhc8+ {[%clk 0:03:50.2]} 23. Kd2 {[%clk
0:03:27.1]} 23... a5 {[%clk 0:03:47.3]} 24. a4 {[%clk 0:03:11.4]} 24... Rab8
{[%clk 0:03:45.5]} 25. Rxb8 {[%clk 0:02:57.4]} 25... Rxb8 {[%clk 0:03:43.9]} 26.
Kc3 {[%clk 0:02:55.6]} 26... Kf5 {[%clk 0:03:33.4]} 27. f3 {[%clk 0:02:50.6]}
27... g6 {[%clk 0:03:31.6]} 28. g3 {[%clk 0:02:43.9]} 28... Rb4 {[%clk
0:03:21.7]} 29. b3 {[%clk 0:02:39.6]} 29... Rb8 {[%clk 0:03:18.5]} 30. Be7
{[%clk 0:02:20.9]} 30... Ke6 {[%clk 0:03:14.9]} 31. Bc5 {[%clk 0:02:12.1]} 31...
Kd5 {[%clk 0:03:11]} 32. b4 {[%clk 0:02:01]} 32... axb4+ {[%clk 0:03:00.1]} 33.
Bxb4 {[%clk 0:02:00.9]} 33... Rc8+ {[%clk 0:02:50.3]} 34. Kd3 {[%clk 0:01:56.5]}
34... Rc1 {[%clk 0:02:46.1]} 35. Be7 {[%clk 0:01:47]} 35... Ra1 {[%clk
0:02:41.2]} 36. Bg5 {[%clk 0:01:18.7]} 36... Rxa4 {[%clk 0:02:38]} 37. Ke3
{[%clk 0:01:13]} 37... Ra3+ {[%clk 0:02:35.9]} 38. Ke2 {[%clk 0:01:10.7]} 38...
Ke6 {[%clk 0:02:32.7]} 39. f4 {[%clk 0:01:06.2]} 39... e4 {[%clk 0:02:28.5]} 40.
Bd8 {[%clk 0:00:59.2]} 40... Rxg3 {[%clk 0:02:25.9]} 0-1

[Event "Live Chess"]
[Site "Chess.com"]
[Date "2024.06.02"]
[Round "-"]
[White "Karasyov2"]
[Black "GerardATHart"]
[Result "1-0"]
[WhiteElo "1160"]
[BlackElo "1380"]
[TimeControl "300"]
[EndTime "8:22:44 PDT"]
[Termination "Karasyov2 won on time"]

1. e4 {[%clk 0:04:58.2]} 1... e5 {[%clk 0:04:56.8]} 2. Nf3 {[%clk 0:04:54]} 2...
Nc6 {[%clk 0:04:55.5]} 3. Bc4 {[%clk 0:04:46]} 3... Nf6 {[%clk 0:04:53.3]} 4.
Ng5 {[%clk 0:04:44.2]} 4... d5 {[%clk 0:04:33.9]} 5. exd5 {[%clk 0:04:41.8]}
5... Nxd5 {[%clk 0:04:20.6]} 6. Nxf7 {[%clk 0:04:36.4]} 6... Kxf7 {[%clk
0:04:08.9]} 7. Qf3+ {[%clk 0:04:33]} 7... Ke6 {[%clk 0:03:56.1]} 8. Nc3 {[%clk
0:04:27.9]} 8... Nd4 {[%clk 0:03:39.3]} 9. Qxd5+ {[%clk 0:03:22.8]} 9... Qxd5
{[%clk 0:03:28]} 10. Bxd5+ {[%clk 0:03:21.8]} 10... Kd6 {[%clk 0:03:23.4]} 11.
O-O {[%clk 0:03:14.1]} 11... Nxc2 {[%clk 0:03:12.2]} 12. Rb1 {[%clk 0:03:09]}
12... Bf5 {[%clk 0:03:03.9]} 13. Be4 {[%clk 0:02:51.1]} 13... Nd4 {[%clk
0:02:35.2]} 14. Bxf5 {[%clk 0:02:37.2]} 14... Nxf5 {[%clk 0:02:33.5]} 15. Re1
{[%clk 0:02:30.5]} 15... g6 {[%clk 0:02:04]} 16. Nb5+ {[%clk 0:02:28.2]} 16...
Kc6 {[%clk 0:01:50.8]} 17. Nc3 {[%clk 0:02:10.2]} 17... Bd6 {[%clk 0:01:46.1]}
18. b3 {[%clk 0:02:03.5]} 18... Raf8 {[%clk 0:01:33.3]} 19. Bb2 {[%clk
0:01:57.9]} 19... Nd4 {[%clk 0:01:31.2]} 20. Ne4 {[%clk 0:01:49.3]} 20... Rf7
{[%clk 0:01:23.9]} 21. f3 {[%clk 0:01:39.2]} 21... Rhf8 {[%clk 0:01:17.3]} 22.
Ng5 {[%clk 0:01:33.7]} 22... Rf5 {[%clk 0:00:54.6]} 23. Ne4 {[%clk 0:01:06.1]}
23... Ne6 {[%clk 0:00:25.7]} 24. Rbc1+ {[%clk 0:00:57.5]} 24... Kd7 {[%clk
0:00:22.4]} 25. Nxd6 {[%clk 0:00:56.1]} 25... cxd6 {[%clk 0:00:21]} 26. Rc4
{[%clk 0:00:53.3]} 26... Nf4 {[%clk 0:00:19.4]} 27. Re3 {[%clk 0:00:49.9]} 27...
Rg5 {[%clk 0:00:17]} 28. g3 {[%clk 0:00:47.8]} 28... Nd5 {[%clk 0:00:11.9]} 29.
Rd3 {[%clk 0:00:45.7]} 29... Ke6 {[%clk 0:00:08.4]} 30. f4 {[%clk 0:00:42.2]}
30... b5 {[%clk 0:00:06.8]} 31. Rc6 {[%clk 0:00:39.5]} 31... Kd7 {[%clk
0:00:04.4]} 32. Ra6 {[%clk 0:00:37.7]} 32... exf4 {[%clk 0:00:02.9]} 33. Kf2
{[%clk 0:00:33]} 33... fxg3+ {[%clk 0:00:01.1]} 34. Kg2 {[%clk 0:00:32.6]} 1-0